[Event "Titled Tuesday Blitz September 27 Early 2022"]
[White "Loay, Sameer"]
[Black "Babazada, Khazar"]
[WhiteFideId "8104239"]
[BlackFideId "13413554"]
[WhiteElo "2505"]
[BlackElo "2877"]
[Result "0-1"]
[Round "01"]
[TimeControl "180+1"]
[Date "2022.09.27"]
[WhiteClock "0:00:20"]
[BlackClock "0:00:25"]

1. Nf3 {[%clk 0:03:00]}  Nf6 {[%clk 0:02:59]} 2. g3 {[%clk 0:03:01]}  g6 {[%clk 0:02:59]} 3. Bg2 {[%clk 0:03:01]}  Bg7 {[%clk 0:02:59]} 4. O-O {[%clk 0:03:02]}  O-O {[%clk 0:03:00]} 5. d3 {[%clk 0:03:03]}  d6 {[%clk 0:02:53]} 6. c3 {[%clk 0:03:02]}  e5 {[%clk 0:02:53]} 7. e4 {[%clk 0:03:03]}  Nc6 {[%clk 0:02:51]} 8. Re1 {[%clk 0:03:02]}  h6 {[%clk 0:02:51]} 9. d4 {[%clk 0:03:03]}  Bg4 {[%clk 0:02:49]} 10. h3 {[%clk 0:03:00]}  Bxf3 {[%clk 0:02:49]} 11. Bxf3 {[%clk 0:03:00]}  Nd7 {[%clk 0:02:50]} 12. dxe5 {[%clk 0:02:58]}  dxe5 {[%clk 0:02:49]} 13. Be3 {[%clk 0:02:55]}  Qe7 {[%clk 0:02:49]} 14. Na3 {[%clk 0:02:53]}  Rfd8 {[%clk 0:02:43]} 15. Qc2 {[%clk 0:02:49]}  a6 {[%clk 0:02:38]} 16. Rad1 {[%clk 0:02:38]}  Nf8 {[%clk 0:02:36]} 17. Qc1 {[%clk 0:02:29]}  Ne6 {[%clk 0:02:35]} 18. Bxh6 {[%clk 0:02:26]}  Bxh6 {[%clk 0:02:29]} 19. Qxh6 {[%clk 0:02:27]}  Ng5 {[%clk 0:02:29]} 20. Bg2 {[%clk 0:02:22]}  Rxd1 {[%clk 0:02:29]} 21. Rxd1 {[%clk 0:02:23]}  Rd8 {[%clk 0:02:29]} 22. Rxd8+ {[%clk 0:02:23]}  Qxd8 {[%clk 0:02:30]} 23. h4 {[%clk 0:02:16]}  Qd1+ {[%clk 0:02:23]} 24. Kh2 {[%clk 0:02:16]}  Nf3+ {[%clk 0:02:21]} 25. Bxf3 {[%clk 0:02:11]}  Qxf3 {[%clk 0:02:22]} 26. Qe3 {[%clk 0:02:12]}  Qd1 {[%clk 0:02:22]} 27. Kg2 {[%clk 0:01:54]}  Qa1 {[%clk 0:01:43]} 28. Qd2 {[%clk 0:01:53]}  Qxa2 {[%clk 0:01:31]} 29. g4 {[%clk 0:01:48]}  Qe6 {[%clk 0:01:29]} 30. Kg3 {[%clk 0:01:48]}  b5 {[%clk 0:01:15]} 31. Nc2 {[%clk 0:01:48]}  Qf6 {[%clk 0:01:12]} 32. g5 {[%clk 0:01:34]}  Qe6 {[%clk 0:01:12]} 33. Ne3 {[%clk 0:01:34]}  Kf8 {[%clk 0:01:10]} 34. Nd5 {[%clk 0:01:34]}  Qd6 {[%clk 0:01:09]} 35. Qe2 {[%clk 0:01:16]}  Ne7 {[%clk 0:01:08]} 36. Nf6 {[%clk 0:01:15]}  Ng8 {[%clk 0:01:07]} 37. Ng4 {[%clk 0:01:11]}  Ne7 {[%clk 0:01:03]} 38. Qf3 {[%clk 0:01:09]}  a5 {[%clk 0:00:56]} 39. Nh6 {[%clk 0:01:10]}  Qe6 {[%clk 0:00:55]} 40. h5 {[%clk 0:00:59]}  gxh5 {[%clk 0:00:54]} 41. Qxh5 {[%clk 0:00:58]}  Ng6 {[%clk 0:00:50]} 42. Nf5 {[%clk 0:00:55]}  Qc4 {[%clk 0:00:48]} 43. Qh7 {[%clk 0:00:48]}  Qxe4 {[%clk 0:00:30]} 44. Qg7+ {[%clk 0:00:48]}  Ke8 {[%clk 0:00:30]} 45. Qg8+ {[%clk 0:00:38]}  Nf8 {[%clk 0:00:30]} 46. Ng7+ {[%clk 0:00:27]}  Ke7 {[%clk 0:00:30]} 47. Nh5 {[%clk 0:00:27]}  Qg6 {[%clk 0:00:28]} 48. Qh8 {[%clk 0:00:26]}  Qxg5+ {[%clk 0:00:28]} 49. Kh2 {[%clk 0:00:25]}  Ng6 {[%clk 0:00:26]} 50. Qh7 {[%clk 0:00:22]}  Qh4+ {[%clk 0:00:26]} 51. Kg1 {[%clk 0:00:21]}  a4 {[%clk 0:00:26]} 52. Nf6 {[%clk 0:00:20]}  Qxf6 {[%clk 0:00:25]} 0-1


[Site "https://www.chess.com"]

[Event "Titled Tuesday Blitz September 27 Early 2022"]
[White "Lopez Martinez, Josep Manuel"]
[Black "Pinero Rodriguez, Carlos Jose"]
[WhiteFideId "2212943"]
[BlackFideId "3901726"]
[WhiteElo "2471"]
[BlackElo "2053"]
[Result "1-0"]
[Round "01"]
[TimeControl "180+1"]
[Date "2022.09.27"]
[WhiteClock "0:00:18"]
[BlackClock "0:00:05"]

1. d4 {[%clk 0:02:58]}  Nf6 {[%clk 0:02:57]} 2. c4 {[%clk 0:02:57]}  e6 {[%clk 0:02:57]} 3. Nf3 {[%clk 0:02:56]}  Bb4+ {[%clk 0:02:57]} 4. Bd2 {[%clk 0:02:54]}  Qe7 {[%clk 0:02:57]} 5. a3 {[%clk 0:02:53]}  Bxd2+ {[%clk 0:02:56]} 6. Qxd2 {[%clk 0:02:53]}  d6 {[%clk 0:02:57]} 7. Nc3 {[%clk 0:02:52]}  O-O {[%clk 0:02:56]} 8. e4 {[%clk 0:02:47]}  e5 {[%clk 0:02:56]} 9. d5 {[%clk 0:02:47]}  a5 {[%clk 0:02:57]} 10. b3 {[%clk 0:02:39]}  Nbd7 {[%clk 0:02:56]} 11. Bd3 {[%clk 0:02:39]}  Nh5 {[%clk 0:02:55]} 12. g3 {[%clk 0:02:34]}  Nc5 {[%clk 0:02:54]} 13. Bc2 {[%clk 0:02:33]}  Bh3 {[%clk 0:02:53]} 14. Nh4 {[%clk 0:02:23]}  g6 {[%clk 0:02:50]} 15. Qe2 {[%clk 0:02:22]}  c6 {[%clk 0:02:24]} 16. O-O-O {[%clk 0:02:14]}  Qf6 {[%clk 0:01:35]} 17. Kb2 {[%clk 0:02:06]}  Rfb8 {[%clk 0:01:23]} 18. a4 {[%clk 0:01:53]}  Na6 {[%clk 0:01:18]} 19. f3 {[%clk 0:01:42]}  Nb4 {[%clk 0:01:15]} 20. Bb1 {[%clk 0:01:42]}  c5 {[%clk 0:01:15]} 21. Ng2 {[%clk 0:01:35]}  Bxg2 {[%clk 0:01:10]} 22. Qxg2 {[%clk 0:01:34]}  Qg5 {[%clk 0:01:08]} 23. Qf2 {[%clk 0:01:29]}  b6 {[%clk 0:01:07]} 24. Rhf1 {[%clk 0:01:26]}  Re8 {[%clk 0:01:04]} 25. f4 {[%clk 0:01:25]}  Qf6 {[%clk 0:00:55]} 26. Qf3 {[%clk 0:01:18]}  Re7 {[%clk 0:00:52]} 27. f5 {[%clk 0:01:14]}  Kg7 {[%clk 0:00:47]} 28. h4 {[%clk 0:01:09]}  h6 {[%clk 0:00:45]} 29. Rf2 {[%clk 0:01:07]}  Rf8 {[%clk 0:00:31]} 30. Rdf1 {[%clk 0:01:07]}  Ree8 {[%clk 0:00:20]} 31. Nd1 {[%clk 0:01:03]}  Qd8 {[%clk 0:00:20]} 32. f6+ {[%clk 0:00:54]}  Kh7 {[%clk 0:00:19]} 33. Ne3 {[%clk 0:00:53]}  Rg8 {[%clk 0:00:17]} 34. Ng4 {[%clk 0:00:53]}  Rh8 {[%clk 0:00:15]} 35. Qe3 {[%clk 0:00:51]}  Kg8 {[%clk 0:00:16]} 36. Nxh6+ {[%clk 0:00:51]}  Kf8 {[%clk 0:00:16]} 37. Ng4 {[%clk 0:00:48]}  Qd7 {[%clk 0:00:17]} 38. Qf3 {[%clk 0:00:44]}  Rb8 {[%clk 0:00:17]} 39. Ne3 {[%clk 0:00:39]}  Ke8 {[%clk 0:00:17]} 40. Ng2 {[%clk 0:00:35]}  Kd8 {[%clk 0:00:17]} 41. g4 {[%clk 0:00:35]}  Nf4 {[%clk 0:00:17]} 42. Nxf4 {[%clk 0:00:34]}  exf4 {[%clk 0:00:18]} 43. h5 {[%clk 0:00:34]}  g5 {[%clk 0:00:18]} 44. e5 {[%clk 0:00:30]}  dxe5 {[%clk 0:00:19]} 45. Re2 {[%clk 0:00:29]}  Qd6 {[%clk 0:00:19]} 46. Rfe1 {[%clk 0:00:28]}  Re8 {[%clk 0:00:19]} 47. Qe4 {[%clk 0:00:26]}  Kc7 {[%clk 0:00:20]} 48. Qf5 {[%clk 0:00:26]}  f3 {[%clk 0:00:18]} 49. Rxe5 {[%clk 0:00:25]}  Rxe5 {[%clk 0:00:17]} 50. Rxe5 {[%clk 0:00:26]}  Rd8 {[%clk 0:00:17]} 51. h6 {[%clk 0:00:25]}  Kb8 {[%clk 0:00:16]} 52. h7 {[%clk 0:00:25]}  f2 {[%clk 0:00:17]} 53. Re2 {[%clk 0:00:20]}  Qh2 {[%clk 0:00:06]} 54. Qxf2 {[%clk 0:00:19]}  Qxh7 {[%clk 0:00:05]} 55. Bxh7 {[%clk 0:00:18]} 1-0


[Site "https://www.chess.com"]

[Event "Titled Tuesday Blitz September 27 Early 2022"]
[White "Madaminov, Mukhiddin"]
[Black "Crevatin, Leo"]
[WhiteFideId "14210703"]
[BlackFideId "1726307"]
[WhiteElo "2815"]
[BlackElo "2483"]
[Result "0-1"]
[Round "01"]
[TimeControl "180+1"]
[Date "2022.09.27"]
[WhiteClock "0:00:11"]
[BlackClock "0:00:19"]

1. d4 {[%clk 0:03:00]}  Nf6 {[%clk 0:02:59]} 2. Nc3 {[%clk 0:03:00]}  d5 {[%clk 0:02:59]} 3. Bf4 {[%clk 0:02:59]}  g6 {[%clk 0:02:53]} 4. Qd2 {[%clk 0:02:58]}  h6 {[%clk 0:02:50]} 5. O-O-O {[%clk 0:02:58]}  Bg7 {[%clk 0:02:48]} 6. Nf3 {[%clk 0:02:59]}  a6 {[%clk 0:02:42]} 7. h4 {[%clk 0:02:56]}  b5 {[%clk 0:02:28]} 8. Ne5 {[%clk 0:02:54]}  Bb7 {[%clk 0:02:05]} 9. f3 {[%clk 0:02:52]}  Nbd7 {[%clk 0:02:02]} 10. e3 {[%clk 0:02:43]}  O-O {[%clk 0:01:58]} 11. g4 {[%clk 0:02:40]}  Nxe5 {[%clk 0:01:33]} 12. Bxe5 {[%clk 0:02:31]}  Nd7 {[%clk 0:01:33]} 13. Bxg7 {[%clk 0:02:30]}  Kxg7 {[%clk 0:01:34]} 14. h5 {[%clk 0:02:15]}  g5 {[%clk 0:01:33]} 15. f4 {[%clk 0:02:14]}  f6 {[%clk 0:01:27]} 16. Bd3 {[%clk 0:02:12]}  c5 {[%clk 0:01:24]} 17. Ne2 {[%clk 0:02:10]}  e6 {[%clk 0:01:12]} 18. c3 {[%clk 0:02:06]}  b4 {[%clk 0:01:10]} 19. cxb4 {[%clk 0:02:04]}  cxb4 {[%clk 0:01:08]} 20. Qxb4 {[%clk 0:02:01]}  Nb6 {[%clk 0:01:08]} 21. Kb1 {[%clk 0:01:57]}  a5 {[%clk 0:01:05]} 22. Qd2 {[%clk 0:01:55]}  Ba6 {[%clk 0:01:03]} 23. Rc1 {[%clk 0:01:52]}  Kh8 {[%clk 0:00:49]} 24. Rc6 {[%clk 0:01:46]}  Bc4 {[%clk 0:00:35]} 25. Rc1 {[%clk 0:01:38]}  Rb8 {[%clk 0:00:35]} 26. b3 {[%clk 0:01:14]}  a4 {[%clk 0:00:35]} 27. b4 {[%clk 0:00:32]}  a3 {[%clk 0:00:31]} 28. Ka1 {[%clk 0:00:31]}  Qd7 {[%clk 0:00:29]} 29. b5 {[%clk 0:00:21]}  Bxd3 {[%clk 0:00:24]} 30. Qxd3 {[%clk 0:00:22]}  Nc4 {[%clk 0:00:24]} 31. Nc3 {[%clk 0:00:22]}  Rxb5 {[%clk 0:00:21]} 32. Qg6 {[%clk 0:00:12]}  Qxc6 {[%clk 0:00:21]} 33. Qxh6+ {[%clk 0:00:12]}  Kg8 {[%clk 0:00:21]} 34. Qg6+ {[%clk 0:00:13]}  Kh8 {[%clk 0:00:22]} 35. Qh6+ {[%clk 0:00:11]}  Kg8 {[%clk 0:00:22]} 36. Qg6+ {[%clk 0:00:11]}  Kh8 {[%clk 0:00:23]} 37. h6 {[%clk 0:00:12]}  Rb7 {[%clk 0:00:21]} 38. Rb1 {[%clk 0:00:12]}  Rxb1+ {[%clk 0:00:21]} 39. Nxb1 {[%clk 0:00:12]}  Qb7 {[%clk 0:00:18]} 40. Qc2 {[%clk 0:00:11]}  Qb2+ {[%clk 0:00:18]} 41. Qxb2 {[%clk 0:00:11]}  axb2# {[%clk 0:00:19]} 0-1


[Site "https://www.chess.com"]

[Event "Titled Tuesday Blitz September 27 Early 2022"]
[White "Mahdavi, Reza"]
[Black "Sargissyan, Sargis"]
[WhiteFideId "12595926"]
[BlackFideId "13303210"]
[WhiteElo "2240"]
[BlackElo "2102"]
[Result "1-0"]
[Round "01"]
[TimeControl "180+1"]
[Date "2022.09.27"]
[WhiteClock "0:01:47"]
[BlackClock "0:00:11"]

1. e4 {[%clk 0:02:49]}  e5 {[%clk 0:02:58]} 2. Nf3 {[%clk 0:02:48]}  Nc6 {[%clk 0:02:58]} 3. Nc3 {[%clk 0:02:46]}  Nf6 {[%clk 0:02:58]} 4. g3 {[%clk 0:02:46]}  d5 {[%clk 0:02:52]} 5. exd5 {[%clk 0:02:47]}  Nxd5 {[%clk 0:02:52]} 6. Bg2 {[%clk 0:02:47]}  Nxc3 {[%clk 0:02:53]} 7. bxc3 {[%clk 0:02:47]}  Bd6 {[%clk 0:02:51]} 8. O-O {[%clk 0:02:45]}  O-O {[%clk 0:02:51]} 9. d3 {[%clk 0:02:43]}  Bg4 {[%clk 0:02:46]} 10. Rb1 {[%clk 0:02:43]}  Rb8 {[%clk 0:02:44]} 11. h3 {[%clk 0:02:44]}  Bh5 {[%clk 0:02:44]} 12. g4 {[%clk 0:02:44]}  Bg6 {[%clk 0:02:44]} 13. Ng5 {[%clk 0:02:45]}  h6 {[%clk 0:02:30]} 14. Ne4 {[%clk 0:02:44]}  f5 {[%clk 0:02:27]} 15. gxf5 {[%clk 0:02:34]}  Bxf5 {[%clk 0:02:26]} 16. Be3 {[%clk 0:02:31]}  Qd7 {[%clk 0:02:04]} 17. Qf3 {[%clk 0:02:29]}  Be6 {[%clk 0:01:53]} 18. Qg3 {[%clk 0:02:27]}  Ne7 {[%clk 0:01:37]} 19. Bxa7 {[%clk 0:02:24]}  Ra8 {[%clk 0:01:33]} 20. Nc5 {[%clk 0:02:10]}  Bxc5 {[%clk 0:01:26]} 21. Bxc5 {[%clk 0:02:10]}  Rxa2 {[%clk 0:01:22]} 22. Rxb7 {[%clk 0:02:06]}  Rxc2 {[%clk 0:01:13]} 23. Qxe5 {[%clk 0:01:57]}  Bxh3 {[%clk 0:00:19]} 24. Qxe7 {[%clk 0:01:45]}  Qg4 {[%clk 0:00:12]} 25. Qxf8+ {[%clk 0:01:46]}  Kh7 {[%clk 0:00:11]} 26. Qf3 {[%clk 0:01:47]} 1-0


[Site "https://www.chess.com"]

[Event "Titled Tuesday Blitz September 27 Early 2022"]
[White "Maksimenko, Viktor"]
[Black "Seifert, Henryk"]
[WhiteFideId "13710478"]
[BlackFideId "1100963"]
[WhiteElo "2269"]
[BlackElo "2120"]
[Result "1-0"]
[Round "01"]
[TimeControl "180+1"]
[Date "2022.09.27"]
[WhiteClock "0:01:17"]
[BlackClock "0:00:01"]

1. d4 {[%clk 0:03:00]}  d5 {[%clk 0:02:58]} 2. c4 {[%clk 0:03:00]}  c6 {[%clk 0:02:58]} 3. Nf3 {[%clk 0:03:00]}  Nf6 {[%clk 0:02:55]} 4. e3 {[%clk 0:03:00]}  g6 {[%clk 0:02:52]} 5. Nc3 {[%clk 0:02:58]}  Bg7 {[%clk 0:02:51]} 6. h3 {[%clk 0:02:58]}  O-O {[%clk 0:02:48]} 7. Be2 {[%clk 0:02:58]}  dxc4 {[%clk 0:02:47]} 8. Bxc4 {[%clk 0:02:57]}  c5 {[%clk 0:02:41]} 9. O-O {[%clk 0:02:54]}  cxd4 {[%clk 0:02:36]} 10. exd4 {[%clk 0:02:55]}  Nbd7 {[%clk 0:02:33]} 11. Re1 {[%clk 0:02:52]}  Nb6 {[%clk 0:02:32]} 12. Bb3 {[%clk 0:02:49]}  e6 {[%clk 0:02:30]} 13. Ne5 {[%clk 0:02:46]}  Nbd5 {[%clk 0:02:17]} 14. Bg5 {[%clk 0:02:43]}  Nxc3 {[%clk 0:02:03]} 15. bxc3 {[%clk 0:02:42]}  Qc7 {[%clk 0:02:04]} 16. Qf3 {[%clk 0:02:39]}  Nd7 {[%clk 0:01:53]} 17. Ng4 {[%clk 0:02:36]}  h5 {[%clk 0:01:47]} 18. Nh2 {[%clk 0:02:12]}  Rb8 {[%clk 0:01:46]} 19. Bf4 {[%clk 0:02:08]}  e5 {[%clk 0:01:41]} 20. dxe5 {[%clk 0:02:08]}  Bxe5 {[%clk 0:01:28]} 21. Rxe5 {[%clk 0:02:08]}  Nxe5 {[%clk 0:01:28]} 22. Qg3 {[%clk 0:02:08]}  Re8 {[%clk 0:00:39]} 23. Re1 {[%clk 0:02:07]}  h4 {[%clk 0:00:21]} 24. Qg5 {[%clk 0:02:07]}  Qxc3 {[%clk 0:00:16]} 25. Rxe5 {[%clk 0:02:06]}  Rxe5 {[%clk 0:00:14]} 26. Bxe5 {[%clk 0:02:05]}  Qc1+ {[%clk 0:00:13]} 27. Nf1 {[%clk 0:02:06]}  Qxg5 {[%clk 0:00:12]} 28. Bxb8 {[%clk 0:02:04]}  Be6 {[%clk 0:00:12]} 29. Bxa7 {[%clk 0:01:49]}  Bxh3 {[%clk 0:00:10]} 30. Bd5 {[%clk 0:01:44]}  Qxd5 {[%clk 0:00:08]} 31. gxh3 {[%clk 0:01:45]}  Qxa2 {[%clk 0:00:08]} 32. Bd4 {[%clk 0:01:44]}  b5 {[%clk 0:00:07]} 33. Ne3 {[%clk 0:01:45]}  b4 {[%clk 0:00:07]} 34. Kg2 {[%clk 0:01:43]}  b3 {[%clk 0:00:07]} 35. Nc4 {[%clk 0:01:44]}  Qc2 {[%clk 0:00:06]} 36. Ne3 {[%clk 0:01:43]}  b2 {[%clk 0:00:06]} 37. Nxc2 {[%clk 0:01:41]}  b1=Q {[%clk 0:00:07]} 38. Ne1 {[%clk 0:01:38]}  Qe4+ {[%clk 0:00:06]} 39. Nf3 {[%clk 0:01:39]}  g5 {[%clk 0:00:05]} 40. Kf1 {[%clk 0:01:33]}  Kf8 {[%clk 0:00:03]} 41. Bc5+ {[%clk 0:01:33]}  Kg7 {[%clk 0:00:03]} 42. Nd2 {[%clk 0:01:27]}  Qd3+ {[%clk 0:00:02]} 43. Ke1 {[%clk 0:01:28]}  f6 {[%clk 0:00:02]} 44. Be3 {[%clk 0:01:28]}  Kg6 {[%clk 0:00:01]} 45. Nf3 {[%clk 0:01:25]}  Qc3+ {[%clk 0:00:01]} 46. Ke2 {[%clk 0:01:25]}  Qc2+ {[%clk 0:00:02]} 47. Kf1 {[%clk 0:01:26]}  f5 {[%clk 0:00:02]} 48. Kg2 {[%clk 0:01:27]}  Kh5 {[%clk 0:00:02]} 49. Bxg5 {[%clk 0:01:26]}  f4 {[%clk 0:00:02]} 50. Bxf4 {[%clk 0:01:24]}  Qg6+ {[%clk 0:00:02]} 51. Kf1 {[%clk 0:01:23]}  Qe4 {[%clk 0:00:02]} 52. Ne5 {[%clk 0:01:15]}  Qxf4 {[%clk 0:00:02]} 53. Ng4 {[%clk 0:01:16]}  Qf3 {[%clk 0:00:01]} 54. Kg1 {[%clk 0:01:16]}  Qxh3 {[%clk 0:00:01]} 55. Nf6+ {[%clk 0:01:16]}  Kg6 {[%clk 0:00:01]} 56. Ne4 {[%clk 0:01:17]} 1-0


[Site "https://www.chess.com"]

[Event "Titled Tuesday Blitz September 27 Early 2022"]
[White "Mangialardo, Tiago Carvalho"]
[Black "Tasev, Dejan"]
[WhiteFideId "2130718"]
[BlackFideId "936618"]
[WhiteElo "2025"]
[BlackElo "2256"]
[Result "0-1"]
[Round "01"]
[TimeControl "180+1"]
[Date "2022.09.27"]
[WhiteClock "0:00:01"]
[BlackClock "0:00:25"]

1. e4 {[%clk 0:02:55]}  c6 {[%clk 0:02:59]} 2. d4 {[%clk 0:02:48]}  d5 {[%clk 0:02:59]} 3. exd5 {[%clk 0:02:49]}  cxd5 {[%clk 0:02:58]} 4. Bd3 {[%clk 0:02:50]}  Nc6 {[%clk 0:02:58]} 5. c3 {[%clk 0:02:48]}  g6 {[%clk 0:02:58]} 6. Nf3 {[%clk 0:02:48]}  Bf5 {[%clk 0:02:54]} 7. O-O {[%clk 0:02:29]}  Bxd3 {[%clk 0:02:54]} 8. Qxd3 {[%clk 0:02:26]}  e6 {[%clk 0:02:54]} 9. Re1 {[%clk 0:02:21]}  Bg7 {[%clk 0:02:53]} 10. Bf4 {[%clk 0:02:20]}  Nge7 {[%clk 0:02:53]} 11. Nbd2 {[%clk 0:02:20]}  O-O {[%clk 0:02:52]} 12. Ne5 {[%clk 0:02:19]}  Rc8 {[%clk 0:02:46]} 13. Qb5 {[%clk 0:02:06]}  b6 {[%clk 0:02:38]} 14. Ndf3 {[%clk 0:02:04]}  Na5 {[%clk 0:02:15]} 15. Nd7 {[%clk 0:01:43]}  Re8 {[%clk 0:01:53]} 16. Bg5 {[%clk 0:01:18]}  a6 {[%clk 0:01:33]} 17. Qxb6 {[%clk 0:01:05]}  Qxd7 {[%clk 0:01:31]} 18. Qxa5 {[%clk 0:01:03]}  Qb7 {[%clk 0:01:29]} 19. Rab1 {[%clk 0:00:50]}  Nc6 {[%clk 0:01:28]} 20. Qa3 {[%clk 0:00:43]}  Bf8 {[%clk 0:01:26]} 21. Qb3 {[%clk 0:00:42]}  Rb8 {[%clk 0:01:21]} 22. Qc2 {[%clk 0:00:32]}  Bg7 {[%clk 0:01:12]} 23. Qd2 {[%clk 0:00:32]}  Rbc8 {[%clk 0:01:10]} 24. Qf4 {[%clk 0:00:32]}  Na5 {[%clk 0:00:58]} 25. Ne5 {[%clk 0:00:30]}  Nc4 {[%clk 0:00:41]} 26. Nxc4 {[%clk 0:00:29]}  dxc4 {[%clk 0:00:39]} 27. Re3 {[%clk 0:00:25]}  Qd5 {[%clk 0:00:38]} 28. Bf6 {[%clk 0:00:19]}  Qf5 {[%clk 0:00:36]} 29. Qxf5 {[%clk 0:00:17]}  gxf5 {[%clk 0:00:34]} 30. Bxg7 {[%clk 0:00:17]}  Kxg7 {[%clk 0:00:35]} 31. f4 {[%clk 0:00:18]}  Kf6 {[%clk 0:00:35]} 32. Re5 {[%clk 0:00:18]}  Rc6 {[%clk 0:00:35]} 33. Kf2 {[%clk 0:00:16]}  Rb8 {[%clk 0:00:35]} 34. Kf3 {[%clk 0:00:08]}  Rcb6 {[%clk 0:00:35]} 35. Re2 {[%clk 0:00:08]}  a5 {[%clk 0:00:32]} 36. a4 {[%clk 0:00:07]}  Rb3 {[%clk 0:00:32]} 37. Rc2 {[%clk 0:00:04]}  Ke7 {[%clk 0:00:31]} 38. h3 {[%clk 0:00:03]}  Kd6 {[%clk 0:00:31]} 39. g4 {[%clk 0:00:04]}  fxg4+ {[%clk 0:00:32]} 40. hxg4 {[%clk 0:00:03]}  h6 {[%clk 0:00:32]} 41. Ke4 {[%clk 0:00:04]}  f5+ {[%clk 0:00:29]} 42. gxf5 {[%clk 0:00:04]}  exf5+ {[%clk 0:00:30]} 43. Kxf5 {[%clk 0:00:05]}  Kd5 {[%clk 0:00:29]} 44. Kg6 {[%clk 0:00:05]}  R3b6+ {[%clk 0:00:29]} 45. Kh5 {[%clk 0:00:05]}  Ke4 {[%clk 0:00:29]} 46. Rf2 {[%clk 0:00:04]}  Kd3 {[%clk 0:00:26]} 47. f5 {[%clk 0:00:04]}  Rf8 {[%clk 0:00:26]} 48. f6 {[%clk 0:00:02]}  Rfxf6 {[%clk 0:00:25]} 49. Rxf6 {[%clk 0:00:03]}  Rxf6 {[%clk 0:00:26]} 50. Re1 {[%clk 0:00:03]}  Kc2 {[%clk 0:00:25]} 51. Re5 {[%clk 0:00:03]}  Kxb2 {[%clk 0:00:26]} 52. Rxa5 {[%clk 0:00:03]}  Kxc3 {[%clk 0:00:26]} 53. d5 {[%clk 0:00:03]}  Kd4 {[%clk 0:00:25]} 54. Rb5 {[%clk 0:00:01]}  c3 {[%clk 0:00:25]} 55. Rb1 {[%clk 0:00:01]}  c2 {[%clk 0:00:25]} 0-1


[Site "https://www.chess.com"]

[Event "Titled Tuesday Blitz September 27 Early 2022"]
[White "Marn, Jan"]
[Black "Hafiz, Arif Abdul"]
[WhiteFideId "14619245"]
[BlackFideId "7104227"]
[WhiteElo "2167"]
[BlackElo "2198"]
[Result "0-1"]
[Round "01"]
[TimeControl "180+1"]
[Date "2022.09.27"]
[WhiteClock "0:01:13"]
[BlackClock "0:01:48"]

1. d4 {[%clk 0:03:00]}  Nf6 {[%clk 0:02:59]} 2. c4 {[%clk 0:03:01]}  c6 {[%clk 0:02:58]} 3. g3 {[%clk 0:02:56]}  d5 {[%clk 0:02:55]} 4. Nf3 {[%clk 0:02:57]}  Bf5 {[%clk 0:02:50]} 5. Nc3 {[%clk 0:02:57]}  e6 {[%clk 0:02:50]} 6. Nh4 {[%clk 0:02:53]}  Be4 {[%clk 0:02:34]} 7. f3 {[%clk 0:02:50]}  Bg6 {[%clk 0:02:31]} 8. Bg2 {[%clk 0:02:43]}  dxc4 {[%clk 0:02:25]} 9. e4 {[%clk 0:02:38]}  c5 {[%clk 0:02:20]} 10. Nxg6 {[%clk 0:02:35]}  hxg6 {[%clk 0:02:19]} 11. d5 {[%clk 0:02:35]}  exd5 {[%clk 0:02:15]} 12. exd5 {[%clk 0:02:30]}  Bd6 {[%clk 0:02:13]} 13. Qe2+ {[%clk 0:02:24]}  Qe7 {[%clk 0:02:13]} 14. Qxe7+ {[%clk 0:02:23]}  Kxe7 {[%clk 0:02:12]} 15. O-O {[%clk 0:02:22]}  a6 {[%clk 0:02:10]} 16. a4 {[%clk 0:02:22]}  Nbd7 {[%clk 0:02:08]} 17. Re1+ {[%clk 0:02:02]}  Kd8 {[%clk 0:02:06]} 18. Bf1 {[%clk 0:01:41]}  Ne5 {[%clk 0:02:06]} 19. f4 {[%clk 0:01:33]}  Nf3+ {[%clk 0:02:06]} 20. Kf2 {[%clk 0:01:32]}  Nxe1 {[%clk 0:02:07]} 21. Kxe1 {[%clk 0:01:33]}  Rxh2 {[%clk 0:02:07]} 22. Bxc4 {[%clk 0:01:24]}  Kc7 {[%clk 0:02:06]} 23. Kd1 {[%clk 0:01:21]}  Rg2 {[%clk 0:01:55]} 24. Ne2 {[%clk 0:01:16]}  Rh8 {[%clk 0:01:55]} 25. Kc2 {[%clk 0:01:13]}  Rhh2 {[%clk 0:01:48]} 0-1


[Site "https://www.chess.com"]

[Event "Titled Tuesday Blitz September 27 Early 2022"]
[White "Martin, Lewis"]
[Black "Ernst, Sipke"]
[WhiteFideId "410551"]
[BlackFideId "1004689"]
[WhiteElo "2145"]
[BlackElo "2436"]
[Result "0-1"]
[Round "01"]
[TimeControl "180+1"]
[Date "2022.09.27"]
[WhiteClock "0:00:05"]
[BlackClock "0:00:41"]

1. e4 {[%clk 0:03:00]}  e5 {[%clk 0:02:59]} 2. Nf3 {[%clk 0:03:00]}  Nc6 {[%clk 0:02:59]} 3. Bb5 {[%clk 0:03:00]}  Nge7 {[%clk 0:02:59]} 4. O-O {[%clk 0:02:57]}  g6 {[%clk 0:02:52]} 5. c3 {[%clk 0:02:56]}  a6 {[%clk 0:02:51]} 6. Ba4 {[%clk 0:02:56]}  Bg7 {[%clk 0:02:51]} 7. d4 {[%clk 0:02:55]}  exd4 {[%clk 0:02:51]} 8. cxd4 {[%clk 0:02:54]}  b5 {[%clk 0:02:51]} 9. Bb3 {[%clk 0:02:53]}  O-O {[%clk 0:02:37]} 10. Re1 {[%clk 0:02:45]}  d6 {[%clk 0:02:36]} 11. h3 {[%clk 0:02:40]}  Na5 {[%clk 0:02:35]} 12. Bc2 {[%clk 0:02:38]}  c5 {[%clk 0:02:35]} 13. Bg5 {[%clk 0:02:17]}  h6 {[%clk 0:02:33]} 14. Bh4 {[%clk 0:02:12]}  Nac6 {[%clk 0:02:24]} 15. dxc5 {[%clk 0:01:51]}  g5 {[%clk 0:02:04]} 16. cxd6 {[%clk 0:01:41]}  Bxb2 {[%clk 0:02:04]} 17. dxe7 {[%clk 0:01:38]}  Qxe7 {[%clk 0:02:04]} 18. Qd5 {[%clk 0:01:07]}  Nb4 {[%clk 0:02:03]} 19. Qxa8 {[%clk 0:01:01]}  Nxc2 {[%clk 0:02:03]} 20. Re2 {[%clk 0:00:44]}  Bxa1 {[%clk 0:01:45]} 21. Bg3 {[%clk 0:00:29]}  Nb4 {[%clk 0:01:17]} 22. Qb8 {[%clk 0:00:19]}  Qc5 {[%clk 0:01:05]} 23. Qd6 {[%clk 0:00:18]}  Qc1+ {[%clk 0:01:03]} 24. Re1 {[%clk 0:00:18]}  Qb2 {[%clk 0:00:54]} 25. Be5 {[%clk 0:00:17]}  Qxa2 {[%clk 0:00:48]} 26. Bxa1 {[%clk 0:00:17]}  Nc2 {[%clk 0:00:48]} 27. Qxh6 {[%clk 0:00:13]}  Qxa1 {[%clk 0:00:48]} 28. Qxg5+ {[%clk 0:00:13]}  Qg7 {[%clk 0:00:48]} 29. Qxg7+ {[%clk 0:00:12]}  Kxg7 {[%clk 0:00:48]} 30. Rc1 {[%clk 0:00:13]}  Nb4 {[%clk 0:00:46]} 31. Nd4 {[%clk 0:00:11]}  Rd8 {[%clk 0:00:44]} 32. Nf3 {[%clk 0:00:09]}  Be6 {[%clk 0:00:44]} 33. Nc3 {[%clk 0:00:09]}  Rc8 {[%clk 0:00:43]} 34. Nd4 {[%clk 0:00:09]}  Nd3 {[%clk 0:00:42]} 35. Rc2 {[%clk 0:00:09]}  b4 {[%clk 0:00:41]} 36. Rd2 {[%clk 0:00:05]}  Rxc3 {[%clk 0:00:41]} 0-1


[Site "https://www.chess.com"]